bitfinex/quotes_BTCUSD_20240819
["timestamp","ask_amount","ask_price","bid_price","bid_amount"]
[1724096879309,0.009053,59055.0,59054.0,3.32619964]
[1724096879525,0.152553,59055.0,59054.0,3.32619964]
[1724096879680,0.152553,59055.0,59054.0,3.33919964]
[1724096880487,0.152553,59055.0,59054.0,1.50052664]
[1724096881698,0.152553,59055.0,59054.0,1.48652664]
[1724096881906,0.152553,59055.0,59054.0,1.48452664]
[1724096882129,0.152553,59055.0,59054.0,1.49352664]
[1724096883789,0.152553,59055.0,59054.0,2.99352664]
[1724096884373,0.152553,59055.0,59054.0,1.15485364]
[1724096884576,0.16187458,59055.0,59054.0,1.15485364]
[1724096885199,0.16187458,59055.0,59054.0,1.14585364]
[1724096885398,0.17778015,59055.0,59054.0,1.13485364]
[1724096885608,0.17778015,59055.0,59054.0,1.14185364]
[1724096885870,0.16187458,59055.0,59054.0,1.48352664]
[1724096886127,0.16187458,59055.0,59054.0,1.47352664]
[1724096886403,0.16187458,59055.0,59054.0,1.81419964]
[1724096886638,0.16187366,59055.0,59054.0,1.81519964]
[1724096887155,0.16187366,59055.0,59054.0,1.81419964]
[1724096887692,0.08327366,59055.0,59054.0,1.81419964]
[1724096887934,0.009053,59055.0,59054.0,1.8509424]
[1724096888144,0.009053,59055.0,59054.0,1.81219964]
[1724096888349,0.009053,59055.0,59054.0,1.85794195]
[1724096888788,0.009053,59055.0,59054.0,1.84894195]
[1724096888988,0.009053,59055.0,59054.0,1.85694195]
[1724096889196,0.009053,59055.0,59054.0,1.86294195]
[1724096890127,0.009053,59055.0,59054.0,3.36294195]
[1724096892083,0.086953,59055.0,59054.0,3.36294195]
[1724096892485,0.086953,59055.0,59054.0,3.32619964]
[1724096893172,0.086953,59055.0,59054.0,3.36294217]
[1724096893365,0.086953,59055.0,59054.0,3.32619964]
[1724096893565,0.086953,59055.0,59054.0,3.3629424]
[1724096894418,0.009053,59055.0,59054.0,3.3629424]
[1724096895233,0.009053,59055.0,59054.0,3.7016154]
[1724096895402,0.009053,59055.0,59054.0,3.3629424]
[1724096895964,0.009053,59055.0,59054.0,3.704614]
[1724096896103,0.009053,59055.0,59054.0,3.66787264]
[1724096896311,0.009053,59055.0,59054.0,3.70461388]
[1724096896515,0.009053,59055.0,59054.0,3.70161388]
[1724096897298,0.009053,59055.0,59054.0,3.36294088]
[1724096897507,0.150353,59055.0,59054.0,3.36294088]
[1724096900831,0.150353,59055.0,59054.0,3.32619964]
[1724096901052,0.150353,59055.0,59054.0,3.36294144]
[1724096901053,0.073153,59055.0,59054.0,3.36294144]
[1724096901271,0.073153,59055.0,59054.0,3.32619964]
[1724096901475,0.009053,59055.0,59054.0,3.41354042]
[1724096902521,0.009053,59055.0,59054.0,3.32619964]
[1724096902722,0.009053,59055.0,59054.0,3.37697703]
[1724096903032,0.009053,59055.0,59054.0,3.41371866]
[1724096903643,0.009053,59055.0,59054.0,3.36294127]
[1724096904559,0.009053,59055.0,59054.0,3.43910735]
[1724096905575,0.009053,59055.0,59054.0,3.36294127]
[1724096908130,0.009053,59055.0,59054.0,1.86294127]
[1724096908131,0.087653,59055.0,59054.0,1.86294127]
[1724096908330,0.148153,59055.0,59054.0,1.82619964]
[1724096908620,0.148153,59055.0,59054.0,3.36294277]
[1724096909998,0.148153,59055.0,59054.0,0.84692377]
[1724096910210,0.15746763,59055.0,59054.0,1.14885364]
[1724096910622,0.17336349,59055.0,59054.0,1.14885364]
[1724096911025,0.17336349,59055.0,59054.0,0.20015887]
[1724096911231,0.17336349,59055.0,59054.0,0.53883187]
[1724096911865,0.17336349,59055.0,59054.0,0.53083187]
[1724096912094,0.17336349,59055.0,59054.0,0.53183187]
[1724096912296,0.17336349,59055.0,59054.0,0.52583187]
[1724096912496,0.17336349,59055.0,59054.0,0.52483187]
[1724096912697,0.17336349,59055.0,59054.0,0.52683187]
[1724096913051,0.17336349,59055.0,59054.0,0.18815887]
[1724096913469,0.17336349,59055.0,59054.0,0.19215887]
[1724096914026,0.17336349,59055.0,59054.0,0.18615887]
[1724096914324,0.17636864,59055.0,59054.0,0.18615887]
[1724096914454,0.17936864,59055.0,59054.0,0.18615887]
[1724096914656,0.154153,59055.0,59054.0,0.18615887]
[1724096915002,0.158153,59055.0,59054.0,0.18615887]
[1724096915228,0.18337309,59055.0,59054.0,0.52483187]
[1724096915432,0.19927561,59055.0,59054.0,1.03485364]
[1724096915636,0.1833737,59055.0,59054.0,1.37352664]
[1724096916205,0.1833737,59055.0,59054.0,1.38346366]
[1724096918809,0.18337726,59055.0,59054.0,1.38346366]
[1724096920178,0.18037726,59055.0,59054.0,1.38346366]
[1724096920382,0.18137726,59055.0,59054.0,1.38346366]
[1724096921014,0.17437726,59055.0,59054.0,1.38346366]
[1724096923959,0.17337726,59055.0,59054.0,1.38346366]
[1724096924594,0.17337726,59055.0,59054.0,1.38446366]
[1724096926588,0.17337726,59055.0,59054.0,0.01782287]
[1724096926795,0.17337726,59055.0,59054.0,0.18715887]
[1724096926991,0.17337726,59055.0,59054.0,0.52583187]
[1724096927455,0.148153,59055.0,59054.0,0.52483187]
[1724096927649,0.17338632,59055.0,59054.0,0.52483187]
[1724096927862,0.17938632,59055.0,59054.0,0.52483187]
[1724096928064,0.17938632,59055.0,59054.0,1.37352664]
[1724096928323,0.16347585,59055.0,59054.0,1.37352664]
[1724096928509,0.18238699,59055.0,59054.0,1.37352664]
[1724096928947,0.157153,59055.0,59054.0,1.37352664]
[1724096929137,0.17338781,59055.0,59054.0,1.37352664]
[1724096929499,0.17438781,59055.0,59054.0,1.37352664]
[1724096929929,0.17738781,59055.0,59054.0,1.37352664]
[1724096930327,0.17438781,59055.0,59054.0,1.37352664]
[1724096930529,0.17438781,59055.0,59054.0,0.52483187]
[1724096930699,0.17738781,59055.0,59054.0,0.18615887]
[1724096930924,0.17738781,59055.0,59054.0,0.52483187]
[1724096932478,0.17738781,59055.0,59054.0,0.338673]
[1724096932648,0.990082,59047.0,59046.0,0.00122875]
[1724096932866,1.31251681,59047.0,59046.0,0.00122875]
[1724096933060,1.82557858,59047.0,59046.0,0.00122875]
[1724096933260,0.169385,59037.0,59029.0,0.169407]
[1724096933504,0.169385,59037.0,59024.0,0.338841]
[1724096933505,0.97388981,59037.0,59026.0,0.338828]
[1724096933676,0.97388981,59037.0,59026.0,0.169415]
[1724096934028,0.97388981,59037.0,59024.0,0.33884]
[1724096934244,0.63511981,59037.0,59029.0,0.169407]
[1724096934445,0.97388981,59037.0,59029.0,0.169407]
[1724096934647,0.97388981,59037.0,59028.0,0.16941]
[1724096935516,0.97388981,59037.0,59036.0,0.010823]
[1724096936464,0.96456634,59037.0,59036.0,0.010823]
[1724096936666,0.97388552,59037.0,59036.0,0.010823]
[1724096937021,1.38033459,59037.0,59036.0,0.010823]
[1724096938074,1.04156459,59037.0,59036.0,0.010823]
[1724096938536,1.38033459,59037.0,59036.0,0.010823]
[1724096940276,1.38033459,59037.0,59036.0,0.006823]
[1724096940483,1.38033459,59037.0,59036.0,0.000823]
[1724096940869,1.37101541,59037.0,59036.0,0.000823]
[1724096941075,1.38033428,59037.0,59036.0,0.000823]
[1724096941289,1.36942165,59037.0,59036.0,0.000823]
[1724096941501,1.72409459,59037.0,59036.0,0.000823]
[1724096941709,1.72509459,59037.0,59036.0,0.000823]
[1724096941911,1.72309459,59037.0,59036.0,0.000823]
[1724096942134,1.72409459,59037.0,59036.0,0.000823]
[1724096942338,1.79078953,59037.0,59036.0,0.002823]
[1724096942583,1.51228265,59037.0,59036.0,0.002823]
[1724096943002,1.69379605,59037.0,59036.0,0.002823]
[1724096943205,0.2972,59021.0,59019.0,0.51404632]
[1724096943418,0.15741758,59020.0,59019.0,0.51404632]
[1724096943690,0.66572758,59020.0,59013.0,0.338905]
[1724096943901,0.66572758,59020.0,59013.0,0.17134877]
[1724096943902,0.10956732,59019.0,59013.0,0.17134877]
[1724096944110,0.00931616,59018.0,59016.0,0.169444]
[1724096944717,0.50831,59017.0,59016.0,0.169444]
[1724096944854,0.51762616,59017.0,59016.0,0.169444]
[1724096945046,0.50831,59017.0,59016.0,0.169444]
[1724096945609,0.50831,59017.0,59016.0,0.508335]
[1724096945985,0.50831,59017.0,59016.0,0.169444]
[1724096946343,0.50831,59017.0,59016.0,0.172444]
[1724096946590,0.603671,59017.0,59016.0,0.172444]
[1724096947318,0.747171,59017.0,59016.0,0.172444]
[1724096947578,0.747171,59017.0,59016.0,0.006]
[1724096947784,0.92592719,59017.0,59016.0,0.003]
[1724096948001,0.747171,59017.0,59016.0,0.003]
[1724096948207,0.7564855,59017.0,59016.0,0.007]
[1724096948420,0.7564855,59017.0,59016.0,0.02308543]
[1724096948649,0.7564855,59017.0,59016.0,0.515336]
[1724096948650,0.65181,59017.0,59016.0,0.515336]
[1724096948851,0.65181,59017.0,59016.0,0.53142143]
[1724096949481,0.50831,59017.0,59016.0,1.0416612]
[1724096950120,0.50831,59017.0,59016.0,1.0424822]
[1724096951500,0.50831,59017.0,59016.0,1.05255356]
[1724096952391,0.50831,59017.0,59016.0,1.39144456]
[1724096952984,0.50831,59017.0,59016.0,1.05255356]
[1724096953821,0.50831,59017.0,59016.0,1.39144456]
[1724096954231,0.50831,59017.0,59016.0,1.05255356]
[1724096954437,0.50831,59017.0,59016.0,0.87113343]
[1724096955275,0.50831,59017.0,59016.0,1.0424822]
[1724096957045,1.017441,59017.0,59016.0,0.02390643]
[1724096957251,2.204538,59017.0,59016.0,0.02390643]
[1724096957467,2.23374817,59017.0,59016.0,0.007821]
[1724096957895,2.23374817,59017.0,59016.0,0.004821]
[1724096958331,2.24990696,59017.0,59016.0,0.005821]
[1724096958534,2.24590696,59017.0,59016.0,0.005821]
[1724096958748,2.24390696,59017.0,59016.0,0.004821]
[1724096959180,2.23974817,59017.0,59016.0,0.005821]
[1724096959396,2.24990518,59017.0,59016.0,0.001821]
[1724096959872,2.25090518,59017.0,59016.0,0.002821]
[1724096960286,2.23974817,59017.0,59016.0,0.002821]
[1724096960521,1.83543217,59017.0,59016.0,0.002821]
[1724096962275,1.8455896,59017.0,59016.0,0.002821]
[1724096962947,1.83543217,59017.0,59016.0,0.002821]
[1724096963172,1.84559004,59017.0,59016.0,0.002821]
[1724096963397,1.83543217,59017.0,59016.0,0.002821]
[1724096963604,1.98176985,59017.0,59016.0,0.002821]
[1724096963821,1.97161198,59017.0,59016.0,0.002821]
[1724096964060,1.9817694,59017.0,59016.0,0.002821]
[1724096964286,1.97161198,59017.0,59016.0,0.002821]
[1724096965402,2.02927067,59017.0,59016.0,0.002821]
[1724096965613,2.02827067,59017.0,59016.0,0.002821]
[1724096965825,2.03127067,59017.0,59016.0,0.002821]
[1724096966047,2.03126108,59017.0,59016.0,0.002821]
[1724096966258,2.02826108,59017.0,59016.0,0.002821]
[1724096966514,2.0123723,59017.0,59016.0,0.002821]
[1724096966732,1.83542767,59017.0,59016.0,0.002821]
[1724096967193,0.70117434,59017.0,59016.0,0.002821]
[1724096967413,0.69101567,59017.0,59016.0,0.002821]
[1724096967633,0.68170387,59017.0,59016.0,0.002821]
[1724096967843,0.68170387,59017.0,59016.0,0.02167321]
[1724096967844,0.69101637,59017.0,59016.0,0.02167321]
[1724096968062,0.61581637,59017.0,59016.0,0.01967321]
[1724096968294,0.53351637,59017.0,59016.0,0.170266]
[1724096968518,0.54451637,59017.0,59016.0,0.19111821]
[1724096969189,0.54451637,59017.0,59016.0,0.02167321]
[1724096969835,0.53351637,59017.0,59016.0,0.01967321]
[1724096970058,0.68855462,59017.0,59016.0,0.02167321]
[1724096970265,0.69455462,59017.0,59016.0,0.02167321]
[1724096970505,0.69455462,59017.0,59016.0,0.02067321]
[1724096970506,0.68955462,59017.0,59016.0,0.02067321]
[1724096970721,0.69455462,59017.0,59016.0,0.02167321]
[1724096971779,0.69455462,59017.0,59016.0,0.002821]
[1724096971981,0.86399662,59017.0,59016.0,0.02167321]
[1724096972195,0.70471371,59017.0,59016.0,0.002821]
[1724096972640,0.70471371,59017.0,59016.0,0.02167321]
[1724096972641,0.69455462,59017.0,59016.0,0.02167321]
[1724096972854,0.69455462,59017.0,59016.0,0.002821]
[1724096973487,0.54451637,59017.0,59016.0,0.002821]
[1724096973935,0.54451637,59017.0,59016.0,0.172266]
[1724096974381,0.54451637,59017.0,59016.0,0.19111821]
[1724096974582,0.54451343,59017.0,59016.0,0.19111821]
[1724096974788,0.54451343,59017.0,59016.0,0.02167321]
[1724096974995,0.64372054,59017.0,59016.0,0.02167321]
[1724096975209,0.54451343,59017.0,59016.0,0.02167321]
[1724096977842,0.54451343,59017.0,59016.0,0.53000921]
[1724096978019,0.54451343,59017.0,59016.0,0.02167321]
[1724096978221,0.54451343,59017.0,59016.0,0.19111821]
[1724096978422,0.54451343,59017.0,59016.0,0.02167321]
[1724096978622,0.54450851,59017.0,59016.0,0.02167321]
[1724096979020,0.54450835,59017.0,59016.0,0.02167321]
[1724096979728,0.52861921,59017.0,59016.0,0.02167321]
[1724096979864,0.54450834,59017.0,59016.0,0.02167321]
[1724096980569,0.54450834,59017.0,59016.0,0.19111821]
[1724096980777,0.54450834,59017.0,59016.0,0.02167321]
[1724096981621,0.59514844,59017.0,59016.0,0.02167321]
[1724096981845,0.54450834,59017.0,59016.0,0.02167321]
[1724096982252,0.59514844,59017.0,59016.0,0.02167321]
[1724096982748,0.76178247,59017.0,59016.0,0.02167321]
[1724096982988,0.72129787,59017.0,59016.0,0.02167321]
[1724096983499,0.93855802,59017.0,59016.0,0.02167321]
[1724096983785,2.68835911,59017.0,59016.0,0.02167321]
[1724096984001,0.169486,59002.0,58997.0,0.169499]
[1724096984283,0.53350834,59001.0,58998.0,0.169496]
[1724096984499,0.02519834,59000.0,58999.0,0.169493]
[1724096984747,0.53350834,59000.0,58999.0,0.0172887]
[1724096984983,0.53350834,59000.0,58999.0,0.1867827]
[1724096985454,0.53350834,59000.0,58999.0,0.0172887]
[1724096985898,0.68661887,59000.0,58997.0,0.006]
[1724096986163,0.50831,59000.0,58999.0,0.0172887]
[1724096986414,0.50831,59000.0,58997.0,0.006]
[1724096986415,0.53350975,59000.0,58998.0,0.18678784]
[1724096986659,0.50931,59000.0,58999.0,0.0252887]
[1724096986889,0.5345098,59000.0,58999.0,0.0252887]
[1724096987089,0.5345098,59000.0,58999.0,0.0352887]
[1724096987291,0.5335098,59000.0,58999.0,0.0172887]
[1724096987711,0.5355098,59000.0,58999.0,0.0172887]
[1724096988168,0.64885908,59000.0,58999.0,0.0172887]
[1724096988402,0.62565928,59000.0,58999.0,0.0362887]
[1724096988607,0.65085891,59000.0,58999.0,0.019]
[1724096988822,0.65085891,59000.0,58999.0,0.03637703]
[1724096989027,0.82034991,59000.0,58999.0,0.03637703]
[1724096989462,0.64885891,59000.0,58999.0,0.01]
[1724096989670,0.64885891,59000.0,58995.0,0.000823]
[1724096989671,0.41699,58999.0,58995.0,0.000823]
[1724096989879,0.466702,58997.0,58995.0,0.000823]
[1724096990106,1.18181863,58996.0,58995.0,0.000823]
[1724096990315,1.52082463,58996.0,58995.0,0.000823]
[1724096990960,1.495625,58996.0,58995.0,0.000823]
[1724096991190,1.52082469,58996.0,58995.0,0.000823]
[1724096991421,1.52082602,58996.0,58995.0,0.000823]
[1724096991635,1.69217479,58996.0,58995.0,0.000823]
[1724096992064,1.52082602,58996.0,58995.0,0.000823]
[1724096993153,1.52482602,58996.0,58995.0,0.000823]
[1724096993395,1.18582002,58996.0,58995.0,0.000823]
[1724096993833,1.52982602,58996.0,58995.0,0.000823]
[1724096994491,1.52982927,58996.0,58995.0,0.000823]
[1724096994904,1.70117804,58996.0,58995.0,0.000823]
[1724096995108,1.70118287,58996.0,58995.0,0.000823]
[1724096995964,1.5298341,58996.0,58995.0,0.000823]
[1724096996200,1.1908281,58996.0,58995.0,0.000823]
[1724096996618,1.19082827,58996.0,58995.0,0.000823]
[1724096997806,0.85182227,58996.0,58995.0,0.000823]
[1724096998009,0.85182227,58996.0,58995.0,0.170328]
[1724096998010,0.54251927,58996.0,58995.0,0.170328]
[1724096998167,0.54251927,58996.0,58995.0,0.509339]
[1724096998367,0.54251927,58996.0,58995.0,0.52684182]
[1724096998368,0.54251974,58996.0,58995.0,0.52684182]
[1724096999063,0.5425199,58996.0,58995.0,0.52684182]
[1724097000407,0.51731,58996.0,58995.0,1.37621259]
[1724097000617,0.51731,58996.0,58995.0,1.45251259]
[1724097000952,0.569041,58996.0,58995.0,0.01832582]
[1724097001193,0.57835453,58996.0,58995.0,0.18783082]
[1724097001431,0.57835453,58996.0,58995.0,2.009339]
[1724097001674,0.50831,58996.0,58995.0,0.86631698]
[1724097001922,0.51762353,58996.0,58995.0,0.86631698]
[1724097002126,0.51862353,58996.0,58995.0,0.87231698]
[1724097002347,0.50931,58996.0,58995.0,1.46557675]
[1724097002557,0.50831,58996.0,58995.0,1.52357675]
[1724097002761,0.51131,58996.0,58995.0,1.52357675]
[1724097003182,0.51231,58996.0,58995.0,1.97058775]
[1724097003186,0.51131,58996.0,58995.0,1.96258775]
[1724097003456,0.51231,58996.0,58995.0,3.46258775]
[1724097003725,0.51131,58996.0,58995.0,3.46258775]
[1724097003982,0.50831,58996.0,58995.0,3.46258775]
[1724097004233,0.50831,58996.0,58995.0,3.47465393]
[1724097004468,0.50831,58996.0,58995.0,3.47265393]
[1724097004751,0.50931,58996.0,58995.0,3.48165393]
[1724097005170,0.51131,58996.0,58995.0,3.48165393]
[1724097005599,0.50931,58996.0,58995.0,3.48165393]
[1724097006022,0.50931,58996.0,58995.0,3.48865393]
[1724097006228,0.51031,58996.0,58995.0,3.48865393]
[1724097008181,0.51031,58996.0,58995.0,1.50274293]
[1724097008387,0.51031,58996.0,58995.0,1.49267675]
[1724097008819,0.51031,58996.0,58995.0,1.57377675]
[1724097009870,0.51031,58996.0,58995.0,1.97828775]
[1724097010693,0.51031,58996.0,58995.0,1.63927675]
[1724097010903,0.51031,58996.0,58995.0,2.65366575]
[1724097011356,0.51031,58996.0,58995.0,2.99267675]
[1724097011567,0.51031,58996.0,58995.0,3.06807675]
[1724097011777,0.51031,58996.0,58995.0,3.13067675]
[1724097012193,0.51031,58996.0,58995.0,3.46968775]
[1724097013433,0.51031,58996.0,58995.0,3.47068775]
[1724097013637,0.51031,58996.0,58995.0,3.46968775]
[1724097015922,0.51031,58996.0,58995.0,3.13067675]
[1724097016344,0.51031,58996.0,58995.0,0.81465475]
[1724097016556,0.51031,58996.0,58995.0,0.71465475]
[1724097016774,0.51031,58996.0,58995.0,0.03478998]
[1724097016979,0.89392354,58996.0,58995.0,0.03478998]
[1724097017193,0.94911,58996.0,58995.0,0.016823]
[1724097017405,0.97431937,58996.0,58995.0,0.03468841]
[1724097017609,0.97431937,58996.0,58995.0,0.016823]
[1724097017818,1.14282237,58996.0,58995.0,0.009823]
[1724097018025,1.31417114,58996.0,58995.0,0.009823]
[1724097018271,1.99818314,58996.0,58995.0,0.009823]
[1724097018943,1.99518314,58996.0,58995.0,0.009823]
[1724097019151,2.34934883,58996.0,58995.0,0.009823]
[1724097019365,2.34834883,58996.0,58995.0,0.000823]
[1724097019578,2.33818914,58996.0,58995.0,0.000823]
[1724097019788,2.33318914,58996.0,58995.0,0.000823]
[1724097020052,1.99318314,58996.0,58995.0,0.000823]
[1724097020260,1.99818314,58996.0,58995.0,0.000823]
[1724097020470,2.90211685,58996.0,58995.0,0.000823]
[1724097020683,2.6136838,58996.0,58995.0,0.000823]
[1724097020895,2.72964188,58996.0,58995.0,0.000823]
[1724097021108,2.69966345,58996.0,58995.0,0.000823]
[1724097021554,2.69566345,58996.0,58995.0,0.000823]
[1724097021758,2.41299269,58996.0,58995.0,0.000823]
[1724097021992,2.41299269,58996.0,58995.0,0.001823]
[1724097021993,2.42599269,58996.0,58995.0,0.001823]
[1724097022212,0.69211937,58996.0,58995.0,0.001823]
[1724097022426,0.84462237,58996.0,58995.0,0.000823]
[1724097022839,0.85662237,58996.0,58995.0,0.001823]
[1724097023044,0.85662237,58996.0,58995.0,0.01873732]
[1724097023263,0.87962237,58996.0,58995.0,0.002823]
[1724097023481,1.21862837,58996.0,58995.0,0.002823]
[1724097023693,1.83083437,58996.0,58995.0,0.001823]
[1724097023915,1.84583437,58996.0,58995.0,0.002823]
[1724097024116,2.01918314,58996.0,58995.0,0.002823]
[1724097024526,2.01618314,58996.0,58995.0,0.002823]
[1724097024731,2.00518314,58996.0,58995.0,0.001823]
[1724097024936,2.02018314,58996.0,58995.0,0.002823]
[1724097025137,2.01918314,58996.0,58995.0,0.002823]
[1724097025587,1.84783018,58996.0,58995.0,0.002823]
[1724097026030,1.50882418,58996.0,58995.0,0.002823]
[1724097026505,1.00031518,58996.0,58995.0,0.002823]
[1724097026714,1.21162418,58996.0,58995.0,0.002823]
[1724097026919,0.70311518,58996.0,58995.0,0.002823]
[1724097027540,0.87261818,58996.0,58995.0,0.02073732]
[1724097027759,0.70311518,58996.0,58995.0,0.002823]
[1724097028164,0.70311518,58996.0,58995.0,0.02073732]
[1724097028372,0.70311518,58996.0,58995.0,0.002823]
[1724097028591,0.63861518,58996.0,58995.0,0.52925332]
[1724097028794,0.56151518,58996.0,58995.0,0.85035]
[1724097029006,0.53631,58996.0,58995.0,0.86826432]
[1724097029213,0.54562154,58996.0,58995.0,0.86826432]
[1724097029421,0.56151542,58996.0,58995.0,0.86826432]
[1724097029682,0.53631,58996.0,58995.0,0.86826432]
[1724097030101,0.54562225,58996.0,58995.0,0.86826432]
[1724097030553,0.54562231,58996.0,58995.0,0.86826432]
[1724097030765,0.53631,58996.0,58995.0,0.86826432]
[1724097030975,0.53631,58996.0,58995.0,1.03961309]
[1724097031184,0.53631,58996.0,58995.0,1.37862409]
[1724097032013,0.52231,58996.0,58995.0,1.37762409]
[1724097032127,0.53231,58996.0,58995.0,1.37862409]
[1724097032743,0.51831,58996.0,58995.0,1.37762409]
[1724097032974,0.51831,58996.0,58995.0,1.37862409]
[1724097033781,0.50831,58996.0,58995.0,1.37762409]
[1724097034008,0.50831,58996.0,58995.0,2.87762409]
[1724097036259,0.5176268,58996.0,58995.0,0.52825332]
[1724097036477,1.47883741,58996.0,58995.0,0.01973732]
[1724097036703,1.453619,58996.0,58995.0,0.01973732]
[1724097036909,1.65018405,58996.0,58995.0,0.001823]
[1724097037121,1.82084128,58996.0,58995.0,0.001823]
[1724097037351,1.82084111,58996.0,58995.0,0.000823]
[1724097037551,1.48183511,58996.0,58995.0,0.000823]
[1724097037759,1.48683511,58996.0,58995.0,0.000823]
[1724097037969,1.48383511,58996.0,58995.0,0.000823]
[1724097038179,1.82284111,58996.0,58995.0,0.000823]
[1724097038385,1.48883511,58996.0,58995.0,0.000823]
[1724097041244,1.82784111,58996.0,58995.0,0.000823]
[1724097041452,1.48883511,58996.0,58995.0,0.000823]
[1724097042956,1.82784111,58996.0,58995.0,0.000823]
[1724097044257,0.62022611,58996.0,58995.0,0.000823]
[1724097044470,0.62022611,58996.0,58995.0,0.170328]
[1724097044676,0.62022326,58996.0,58995.0,0.000823]
[1724097044891,0.59501,58996.0,58995.0,0.000823]
[1724097045115,0.62022148,58996.0,58995.0,0.000823]
[1724097045325,0.62022148,58996.0,58995.0,0.01750962]
[1724097045531,0.62022148,58996.0,58995.0,0.000823]
[1724097045793,0.62022148,58996.0,58995.0,0.01750962]
[1724097046018,0.54352148,58996.0,58995.0,0.18701462]
[1724097046233,0.54352148,58996.0,58995.0,0.01750962]
[1724097047279,0.54352148,58996.0,58995.0,0.000823]
[1724097047484,0.54352112,58996.0,58995.0,0.01751976]
[1724097047907,0.62422112,58996.0,58995.0,0.01751976]
[1724097048376,0.62422112,58996.0,58995.0,0.000823]
[1724097048812,0.60832362,58996.0,58995.0,0.000823]
[1724097049017,0.62421879,58996.0,58995.0,0.01751976]
[1724097049225,0.62421879,58996.0,58995.0,0.000823]
[1724097049444,0.60832188,58996.0,58995.0,0.01751976]
[1724097049691,0.6242164,58996.0,58995.0,0.01751976]
[1724097052192,0.6242164,58996.0,58995.0,0.18702476]
[1724097052397,0.6242164,58996.0,58995.0,0.01751976]
[1724097052606,0.6242164,58996.0,58995.0,0.18702476]
[1724097053243,0.6242164,58996.0,58995.0,0.52603576]
[1724097053670,0.5435164,58996.0,58995.0,0.86504676]
[1724097053881,0.54351726,58996.0,58995.0,0.86504676]
[1724097054318,0.54351726,58996.0,58995.0,0.52603576]
[1724097054745,0.54351726,58996.0,58995.0,0.86504676]
[1724097057524,0.5435026,58996.0,58995.0,0.86504676]
[1724097058575,0.5385026,58996.0,58995.0,0.86504676]
[1724097058989,0.5415026,58996.0,58995.0,0.86504676]
[1724097059390,0.5365026,58996.0,58995.0,0.86504676]
[1724097059566,0.5475026,58996.0,58995.0,0.86604676]
[1724097060426,0.5475026,58996.0,58995.0,1.20505776]
[1724097060864,0.5316164,58996.0,58995.0,1.37640653]
[1724097061076,0.53161312,58996.0,58995.0,1.37640653]
[1724097061275,0.54749262,58996.0,58995.0,1.37640653]
[1724097061685,0.53161314,58996.0,58995.0,1.37640653]
[1724097062049,0.53161314,58996.0,58995.0,2.87640653]
[1724097062839,0.53161314,58996.0,58995.0,1.37640653]
[1724097063301,0.54748999,58996.0,58995.0,1.37640653]
[1724097063505,0.54748997,58996.0,58995.0,1.37640653]
[1724097064503,0.53161314,58996.0,58995.0,1.37640653]
[1724097065334,0.52231,58996.0,58995.0,1.37640653]
[1724097065703,0.52231,58996.0,58995.0,1.43790653]
[1724097065913,0.53161188,58996.0,58995.0,1.43790653]
[1724097066171,0.53161188,58996.0,58995.0,1.95561753]
[1724097066389,0.53161188,58996.0,58995.0,1.99238105]
[1724097066390,0.52231,58996.0,58995.0,1.99238105]
[1724097066821,0.51131,58996.0,58995.0,3.49138105]
[1724097067234,0.51531,58996.0,58995.0,3.49138105]
[1724097067653,0.51131,58996.0,58995.0,3.49138105]
[1724097068078,0.50831,58996.0,58995.0,3.49138105]
[1724097068296,0.50831,58996.0,58995.0,3.83039205]
[1724097068579,0.50831,58996.0,58995.0,3.83739205]
[1724097068580,0.50931,58996.0,58995.0,3.83739205]
[1724097068858,0.50931,58996.0,58995.0,3.88818762]
[1724097069101,0.50931,58996.0,58995.0,4.18140305]
[1724097069336,0.50931,58996.0,58995.0,4.56311585]
[1724097069337,0.001,58996.0,58995.0,4.56311585]
[1724097069601,0.001,58996.0,58995.0,4.68757851]
[1724097069843,0.00090421,59016.0,59015.0,1.186136]
[1724097070072,0.00090421,59016.0,59015.0,1.35748477]
[1724097070314,0.00090421,59016.0,59015.0,1.37438722]
[1724097070559,0.00090421,59016.0,59015.0,1.03549122]
[1724097071005,0.01190421,59016.0,59015.0,1.03649122]
[1724097071259,0.01190421,59016.0,59015.0,1.11389122]
[1724097071468,0.01190421,59016.0,59015.0,1.45278722]
[1724097071703,0.01790421,59016.0,59015.0,1.45378722]
[1724097072330,0.00690421,59016.0,59015.0,1.45278722]
[1724097072573,0.00090421,59016.0,59015.0,1.46191577]
[1724097072787,0.00832995,59016.0,59015.0,1.46291577]
[1724097074797,0.00832995,59016.0,59015.0,1.03649122]
[1724097074969,0.08512995,59016.0,59015.0,1.03649122]
[1724097075777,0.00832995,59016.0,59015.0,1.03649122]
[1724097078234,0.00832995,59016.0,59015.0,0.01790245]
[1724097078447,0.08512995,59016.0,59015.0,0.18735045]
[1724097079723,0.08512995,59016.0,59015.0,0.01790245]
[1724097079933,0.08512995,59016.0,59015.0,0.18735045]
[1724097080392,0.08512995,59016.0,59015.0,0.52624645]
[1724097080829,0.08512995,59016.0,59015.0,0.18735045]
[1724097081042,0.08512995,59016.0,59015.0,0.52624645]
[1724097081242,0.08512995,59016.0,59015.0,0.52706745]
[1724097081422,0.08512995,59016.0,59015.0,0.86596345]
[1724097081780,0.08512995,59016.0,59015.0,1.18531222]
[1724097081781,0.00832995,59016.0,59015.0,1.18531222]
[1724097081983,0.00832995,59016.0,59015.0,1.52420822]
[1724097082186,0.00832995,59016.0,59015.0,1.86310422]
[1724097082594,0.00832995,59016.0,59015.0,1.87317233]
[1724097083814,0.00832995,59016.0,59015.0,3.37317233]
[1724097084822,0.00832995,59016.0,59015.0,3.29117233]
[1724097085416,0.00832995,59016.0,59015.0,1.37620822]
[1724097085417,0.08672995,59016.0,59015.0,1.37620822]
[1724097086221,0.08672995,59016.0,59015.0,0.52706745]
[1724097086440,0.15972045,59016.0,59015.0,0.01872345]
[1724097086823,0.15972045,59016.0,59015.0,0.18817145]
[1724097087427,0.15972045,59016.0,59015.0,0.01872345]
[1724097087428,0.66805645,59016.0,59015.0,0.01872345]
[1724097087650,0.68391151,59016.0,59015.0,0.001821]
[1724097088429,0.67591151,59016.0,59015.0,0.000821]
[1724097088743,0.68591151,59016.0,59015.0,0.001821]
[1724097088959,0.68691151,59016.0,59015.0,0.002821]
[1724097089151,1.15870116,59016.0,59015.0,0.002821]
[1724097089380,1.15970116,59016.0,59015.0,0.002821]
[1724097089580,1.64879537,59016.0,59015.0,0.002821]
[1724097089785,1.67393749,59016.0,59015.0,0.002821]
[1724097089988,1.73304473,59016.0,59015.0,0.002821]
[1724097090187,1.67393749,59016.0,59015.0,0.002821]